bitfinex/quotes_SOLUSD_20240717
["timestamp","ask_amount","ask_price","bid_price","bid_amount"]
[1721255450652,1.27788398,156.75,156.72,6.3806]
[1721255452678,1.27788398,156.75,156.68,47.866]
[1721255452895,7.65748398,156.75,156.7,6.3815]
[1721255453091,20.0,156.74,156.7,6.3815]
[1721255453255,1.27788398,156.73,156.7,6.3815]
[1721255454472,1.27788398,156.73,156.68,47.866]
[1721255454473,1.27788398,156.73,156.69,6.3819]
[1721255454776,1.27788398,156.73,156.7,6.3815]
[1721255455358,1.27788398,156.73,156.71,6.3811]
[1721255456481,20.0,156.74,156.72,6.3807]
[1721255456679,21.27788398,156.75,156.72,6.3806]
[1721255457183,21.27788398,156.75,156.71,1.27614994]
[1721255458161,6.38,156.74,156.7,22.3348]
[1721255458361,20.0,156.73,156.7,22.3348]
[1721255458562,20.0,156.73,156.71,6.3811]
[1721255458963,20.0,156.74,156.71,6.3811]
[1721255459896,1.27788398,156.73,156.71,6.3811]
[1721255460100,1.27788398,156.73,156.7,22.3347]
[1721255461794,21.27788398,156.74,156.7,22.3347]
[1721255462298,20.0,156.74,156.73,6.3803]
[1721255462995,1.27788398,156.77,156.73,6.3803]
[1721255463190,7.65658398,156.77,156.73,6.3803]
[1721255463572,7.65658398,156.77,156.72,23.60794991]
[1721255463980,7.65658398,156.77,156.72,22.332]
[1721255464297,20.0,156.76,156.72,22.332]
[1721255465596,21.27788398,156.76,156.73,6.3803]
[1721255466127,1.27788398,156.76,156.73,6.3803]
[1721255466601,1.27788398,156.76,156.72,15.9514]
[1721255466602,1.27788398,156.76,156.72,22.3321]
[1721255467678,1.27788398,156.76,156.73,6.3803]
[1721255467875,7.65738398,156.76,156.72,15.9514]
[1721255468093,6.3797,156.75,156.71,6.381]
[1721255468300,7.65758398,156.75,156.71,6.381]
[1721255468613,1.27788398,156.75,156.71,6.381]
[1721255469088,6.3803,156.74,156.69,15.9546]
[1721255469287,1.27788398,156.73,156.69,22.3364]
[1721255470281,1.27788398,156.72,156.69,22.3364]
[1721255471516,6.3804,156.73,156.7,6.3813]
[1721255471517,1.27788398,156.73,156.7,6.3813]
[1721255473485,1.27788398,156.73,156.69,15.9546]
[1721255474541,1.27788398,156.73,156.66,15.9577]
[1721255474697,6.3816,156.7,156.66,22.3409]
[1721255474900,21.27788398,156.69,156.63,15.9608]
[1721255475139,1.27788398,156.68,156.66,6.3832]
[1721255475426,1.27788398,156.68,156.65,22.3418]
[1721255475998,1.27788398,156.69,156.65,22.3418]
[1721255476201,1.27788398,156.69,156.66,6.383]
[1721255476401,21.27788398,156.7,156.66,6.383]
[1721255476706,27.65968398,156.7,156.65,17.23494683]
[1721255476899,20.0,156.7,156.65,17.23494683]
[1721255477126,20.0,156.7,156.67,6.3828]
[1721255477311,21.27788398,156.71,156.67,6.3828]
[1721255477823,27.65918398,156.71,156.67,6.3828]
[1721255478006,26.3813,156.71,156.66,7.65964157]
[1721255478320,26.3813,156.71,156.67,6.3827]
[1721255478705,26.3813,156.71,156.66,7.65964157]
[1721255480627,6.3816,156.7,156.66,7.65964157]
[1721255480927,20.0,156.69,156.66,7.65964157]
[1721255481239,20.0,156.69,156.66,1.27644157]
[1721255481406,21.27788398,156.69,156.63,6.3843]
[1721255481724,6.3842,156.64,156.6,6.3856]
[1721255481917,6.3849,156.62,156.58,6.3864]
[1721255482117,6.3849,156.62,156.56,15.9679]
[1721255482300,1.27788398,156.61,156.56,15.9679]
[1721255482507,7.66318398,156.61,156.57,6.3868]
[1721255482727,6.3853,156.61,156.57,6.3868]
[1721255483040,6.3849,156.62,156.57,6.3868]
[1721255483221,1.27788398,156.61,156.57,6.3868]
[1721255483546,7.66308398,156.61,156.57,6.3868]
[1721255483827,6.3852,156.61,156.57,6.3868]
[1721255484040,6.3849,156.62,156.57,6.3868]
[1721255484336,1.27788398,156.61,156.57,6.3868]
[1721255485421,1.27788398,156.61,156.58,6.3864]
[1721255485724,1.27788398,156.61,156.57,6.3868]
[1721255486107,1.27788398,156.6,156.57,6.3868]
[1721255486313,1.27788398,156.6,156.53,6.3884]
[1721255486314,6.3865,156.58,156.53,6.3884]
[1721255486506,7.66478398,156.57,156.52,15.9714]
[1721255486733,1.27788398,156.57,156.53,6.3885]
[1721255486905,21.27788398,156.57,156.53,6.3885]
[1721255487103,21.27788398,156.57,156.52,22.3602]
[1721255487104,27.66488398,156.57,156.52,22.3602]
[1721255487323,1.27788398,156.56,156.52,22.3602]
[1721255487636,7.66528398,156.56,156.52,15.9714]
[1721255487838,1.27788398,156.56,156.52,22.3603]
[1721255488212,7.66518398,156.56,156.52,22.3603]
[1721255488613,20.0,156.55,156.52,22.3603]
[1721255489322,20.0,156.56,156.52,22.3603]
[1721255489522,1.27788398,156.55,156.49,15.9753]
[1721255489834,38.5007,156.61,156.49,15.9753]
[1721255489835,1.27788398,156.54,156.49,15.9753]
[1721255490007,1.27788398,156.59,156.49,15.9753]
[1721255490205,46.27788398,156.59,156.49,15.9753]
[1721255490437,20.0,156.58,156.5,6.3897]
[1721255490730,20.0,156.58,156.49,15.9753]
[1721255490731,6.3878,156.55,156.49,15.9753]
[1721255490935,21.27788398,156.54,156.49,15.9753]
[1721255491527,7.66438398,156.58,156.53,6.3885]
[1721255491731,1.27788398,156.57,156.52,15.9719]
[1721255491930,1.27788398,156.56,156.52,15.9719]
[1721255492103,7.66438398,156.59,156.54,6.388]
[1721255492308,20.0,156.58,156.55,6.3876]
[1721255492529,1.27788398,156.57,156.54,6.388]
[1721255492714,6.386,156.6,156.54,15.9696]
[1721255492910,1.27788398,156.59,156.54,15.9696]
[1721255493226,7.66408398,156.59,156.54,22.3576]
[1721255493406,7.66408398,156.59,156.49,48.2089]
[1721255493407,6.3869,156.57,156.51,15.973]
[1721255493612,1.27788398,156.56,156.51,15.973]
[1721255493813,1.27788398,156.56,156.53,6.3885]
[1721255494521,21.27788398,156.57,156.53,6.3885]
[1721255494918,27.66478398,156.57,156.52,7.66639986]
[1721255495117,21.27788398,156.57,156.52,6.3888]
[1721255495413,1.27788398,156.56,156.52,6.3888]
[1721255495624,6.3869,156.57,156.52,6.3888]
[1721255495826,1.27788398,156.56,156.52,6.3888]
[1721255496041,1.27788398,156.58,156.53,15.9705]
[1721255496343,1.27788398,156.58,156.54,1.27747805]
[1721255496506,1.27788398,156.58,156.55,6.3873]
[1721255497133,1.27788398,156.57,156.53,22.3586]
[1721255497430,21.27788398,156.57,156.53,22.3586]
[1721255500333,21.27788398,156.57,156.53,6.3885]
[1721255500514,21.27788398,156.57,156.53,7.6660342]
[1721255500716,21.27788398,156.57,156.53,6.3885]
[1721255501933,21.27788398,156.57,156.53,7.66603508]
[1721255502225,21.27788398,156.57,156.53,6.3885]
[1721255502632,20.0,156.57,156.54,17.24733566]
[1721255502832,7.89595537,156.6,156.55,6.3876]
[1721255502833,26.3861,156.59,156.55,6.3876]
[1721255503023,20.0,156.59,156.55,7.6649904]
[1721255503330,7.66358398,156.6,156.56,6.3872]
[1721255504944,22.7916,156.61,156.57,6.3868]
[1721255505235,7.66268398,156.63,156.58,7.66324969]
[1721255505443,20.0,156.6,156.58,7.66324969]
[1721255505616,20.0,156.62,156.58,7.66324969]
[1721255505818,26.385,156.62,156.58,1.27714969]
[1721255506036,26.385,156.62,156.57,7.6636359]
[1721255506237,26.385,156.62,156.58,1.27713566]
[1721255507135,26.385,156.62,156.57,6.3865]
[1721255507724,26.385,156.62,156.58,7.66343624]
[1721255507918,20.0,156.62,156.58,17.24273624]
[1721255508118,21.27788398,156.64,156.58,17.24273624]
[1721255508319,26.3841,156.64,156.58,17.24273624]
[1721255508530,27.66198398,156.64,156.58,15.9656]
[1721255508721,26.3841,156.64,156.58,15.9656]
[1721255508921,6.3841,156.64,156.58,15.9656]
[1721255509149,1.27788398,156.65,156.59,1.27691649]
[1721255509359,6.3836,156.65,156.61,6.3852]
[1721255509563,7.66118398,156.66,156.61,6.3852]
[1721255509734,6.3833,156.66,156.62,1.27691333]
[1721255509936,6.3838,156.65,156.6,22.3492]
[1721255510239,6.3838,156.65,156.61,1.27680465]
[1721255510452,20.0,156.64,156.6,22.3492]
[1721255510636,26.3842,156.64,156.61,1.27690288]
[1721255510834,26.3842,156.64,156.6,15.9637]
[1721255511038,6.3846,156.63,156.59,6.386]
[1721255511648,20.0,156.64,156.57,32.1134]
[1721255511649,26.3841,156.64,156.6,7.66252055]
[1721255512346,20.0,156.64,156.6,7.66252055]
[1721255512573,20.0,156.64,156.61,7.66209898]
[1721255512744,20.0,156.64,156.61,1.27689898]
[1721255515537,20.0,156.64,156.61,7.66209898]
[1721255515726,20.0,156.65,156.62,1.27681212]
[1721255515927,20.0,156.65,156.61,6.3852]
[1721255518366,1.27788398,156.67,156.64,6.384]
[1721255518653,16.0973,156.69,156.66,6.3831]
[1721255518831,6.3817,156.7,156.66,6.3831]
[1721255519037,7.65958398,156.7,156.66,6.3831]
[1721255519636,7.88998392,156.71,156.67,7.6592446]
[1721255519854,7.65878398,156.72,156.67,6.3827]
[1721255520056,1.27788398,156.71,156.65,31.6386]
[1721255520362,7.65918398,156.71,156.66,7.65933838]
[1721255521063,6.3813,156.71,156.66,7.65933838]
[1721255521249,6.3813,156.71,156.67,6.3827]
[1721255521450,20.0,156.7,156.67,6.3827]
[1721255521957,20.0,156.7,156.66,23.33953838]
[1721255522256,6.605335,156.74,156.71,6.3811]
[1721255522461,6.38,156.74,156.69,6.3819]
[1721255522858,7.65788398,156.74,156.69,6.3819]
[1721255523036,7.65748398,156.75,156.7,7.65754409]
[1721255523561,16.6237,156.77,156.71,17.22843372]
[1721255523747,7.65668398,156.77,156.71,17.22843372]
[1721255524058,1.27788398,156.78,156.73,15.9503]
[1721255524259,22.8075,156.81,156.74,1.27583678]
[1721255524461,1.27788398,156.78,156.74,1.27583678]
[1721255524759,7.65628398,156.78,156.74,1.27583678]
[1721255525440,20.0,156.77,156.74,1.27583678]
[1721255526241,20.0,156.78,156.74,1.27583678]
[1721255526755,27.65618398,156.78,156.73,22.3303]
[1721255527261,26.3783,156.78,156.74,1.27576487]
[1721255527460,26.3783,156.78,156.74,7.65566487]
[1721255527671,27.65618398,156.78,156.73,22.3306]
[1721255528055,20.0,156.78,156.75,6.3795]
[1721255528651,20.0,156.78,156.74,6.3799]
[1721255529556,20.0,156.78,156.75,7.65526424]
[1721255529755,6.3775,156.81,156.75,17.22406424]
[1721255530252,1.27788398,156.8,156.75,15.9483]
[1721255530453,1.27788398,156.79,156.75,15.9483]
[1721255530671,1.27788398,156.83,156.76,1.2757314]
[1721255530874,1.27788398,156.82,156.77,1.27558356]
[1721255531169,1.27788398,156.82,156.76,1.27558764]
[1721255531371,6.3772,156.81,156.77,1.27564962]
[1721255531561,20.0,156.8,156.77,7.65424962]
[1721255531871,20.0,156.8,156.76,6.3791]
[1721255532067,20.0,156.8,156.77,7.65418731]
[1721255532377,20.0,156.81,156.77,7.65418731]
[1721255532576,20.0,156.81,156.78,6.378]
[1721255532774,20.0,156.82,156.78,6.378]
[1721255533271,20.0,156.82,156.77,22.3247]
[1721255533572,20.0,156.83,156.74,15.9495]
[1721255533757,1.27788398,156.82,156.71,15.9529]
[1721255533952,6.3799,156.75,156.71,15.9529]
[1721255534146,27.65788398,156.74,156.7,6.3815]
[1721255534352,20.0,156.74,156.7,6.3815]
[1721255534758,20.0,156.74,156.72,6.3804]
[1721255534959,21.27788398,156.76,156.72,6.3804]
[1721255535578,20.0,156.76,156.73,7.65631992]
[1721255535769,20.0,156.76,156.72,15.9511]
[1721255535973,20.0,156.77,156.73,1.27590245]
[1721255536165,20.0,156.77,156.74,7.6554039]
[1721255536360,26.3784,156.78,156.74,6.3796]
[1721255536558,6.3787,156.77,156.73,6.3802]
[1721255536961,26.3784,156.78,156.73,6.3802]
[1721255537162,20.0,156.78,156.74,6.3799]
[1721255537356,20.0,156.78,156.75,6.3795]
[1721255537556,26.3781,156.79,156.74,6.3799]
[1721255537750,1.27788398,156.78,156.74,6.3799]
[1721255538377,7.65628398,156.78,156.74,6.3799]
[1721255538875,20.0,156.77,156.75,6.3795]
[1721255539066,20.0,156.77,156.74,6.3798]
[1721255539257,20.0,156.77,156.73,6.3803]
[1721255539854,20.0,156.77,156.74,6.3799]
[1721255540074,20.0,156.78,156.75,6.3795]
[1721255540254,20.0,156.78,156.76,7.65455222]
[1721255540455,20.0,156.8,156.76,6.3788]
[1721255540877,7.65578398,156.79,156.75,6.3795]
[1721255541068,20.0,156.78,156.75,6.3795]
[1721255541755,20.0,156.79,156.76,7.65450876]
[1721255541956,20.0,156.8,156.76,6.3788]
[1721255542471,27.65498398,156.81,156.76,6.3788]
[1721255542675,27.65498398,156.81,156.77,1.27561703]
[1721255543059,27.65498398,156.81,156.76,6.3788]
[1721255543254,6.3776,156.8,156.75,6.3795]
[1721255543478,26.3779,156.79,156.74,22.3292]
[1721255543682,1.27788398,156.78,156.74,15.9494]
[1721255543879,6.3784,156.78,156.74,22.3293]
[1721255544087,1.27788398,156.8,156.75,6.3794]
[1721255546566,7.65868398,156.72,156.68,22.3376]
[1721255546760,1.27788398,156.71,156.68,22.3376]
[1721255547261,1.27788398,156.72,156.69,6.3819]
[1721255547480,1.27788398,156.72,156.68,15.9556]
[1721255547685,21.27788398,156.73,156.68,15.9556]
[1721255548087,21.27788398,156.73,156.66,6.3832]
[1721255548088,6.3816,156.71,156.66,6.3832]
[1721255548295,6.3823,156.69,156.65,6.3836]
[1721255548496,21.27788398,156.68,156.64,6.384]
[1721255548786,1.27788398,156.67,156.64,6.384]
[1721255550390,20.0,156.68,156.65,15.9589]
[1721255550586,1.27788398,156.72,156.66,1.27665091]
[1721255550785,1.27788398,156.72,156.67,15.9562]
[1721255551169,1.27788398,156.72,156.68,6.3823]
[1721255551370,1.27788398,156.72,156.67,15.9562]
[1721255551588,7.65868398,156.72,156.67,22.339]
[1721255551889,1.27788398,156.72,156.67,15.9562]
[1721255552080,27.65868398,156.72,156.67,22.339]
[1721255552994,21.27788398,156.72,156.68,6.3824]
[1721255553385,21.27788398,156.72,156.68,7.65875328]
[1721255553599,21.27788398,156.72,156.68,6.3824]
[1721255554700,21.27788398,156.72,156.64,6.3836]
[1721255554876,6.382,156.69,156.64,6.3836]
[1721255555077,7.66038398,156.68,156.63,22.3447]
[1721255555276,1.27788398,156.67,156.63,22.3447]
[1721255555476,7.66068398,156.67,156.63,15.9603]
[1721255555686,6.3824,156.68,156.63,23.621401]
[1721255555889,1.27788398,156.67,156.64,6.384]
[1721255556278,20.0,156.68,156.63,17.237101]
[1721255556576,20.0,156.68,156.65,6.3836]
[1721255556773,21.27788398,156.69,156.65,6.3836]
[1721255556975,21.27788398,156.69,156.63,15.9603]
[1721255557170,6.3824,156.68,156.63,15.9603]
[1721255557376,21.27788398,156.67,156.63,23.62124027]
[1721255557989,21.27788398,156.67,156.63,22.3445]
[1721255558181,21.27788398,156.67,156.65,6.3836]
[1721255558386,21.27788398,156.69,156.65,6.3836]
[1721255558677,21.27788398,156.69,156.64,6.384]
[1721255558678,27.65998398,156.69,156.64,6.384]
[1721255559096,20.0,156.69,156.65,7.66022178]
[1721255559281,21.27788398,156.69,156.65,6.3835]
[1721255559487,21.27788398,156.69,156.66,6.3831]
[1721255559791,1.27788398,156.71,156.67,6.3827]
[1721255559991,1.27788398,156.71,156.67,7.65913727]
[1721255560198,1.27788398,156.71,156.67,7.65913684]
[1721255560509,1.27788398,156.72,156.68,6.3823]
[1721255560697,7.65868398,156.72,156.68,6.3823]
[1721255560881,7.65868398,156.72,156.67,7.65913684]
[1721255561083,1.27788398,156.73,156.69,22.3366]
[1721255561285,7.65828398,156.73,156.69,22.3366]
[1721255561484,7.65828398,156.73,156.69,15.9547]
[1721255561690,15.8168,156.76,156.71,6.3811]
[1721255561881,12.8069,156.77,156.72,7.65648139]
[1721255562201,1.27788398,156.76,156.72,7.65648139]
[1721255563202,21.27788398,156.76,156.72,7.65658139]
[1721255563508,20.0,156.76,156.72,1.27482818]
[1721255563720,1.27788398,156.77,156.73,6.3803]
[1721255565522,6.3784,156.78,156.74,6.3799]
[1721255565721,14.25990107,156.8,156.73,15.9503]
[1721255565892,7.65568398,156.8,156.75,6.3792]
[1721255566097,6.3778,156.8,156.75,6.3792]
[1721255566911,6.3783,156.78,156.74,6.3799]
[1721255567116,20.0,156.77,156.74,6.3799]
[1721255567289,20.0,156.77,156.74,7.65567677]
[1721255567491,20.0,156.77,156.74,6.3799]
[1721255567809,20.0,156.78,156.74,6.3799]
[1721255567999,1.27788398,156.77,156.73,15.9503]
[1721255568424,6.3788,156.77,156.73,15.9503]
[1721255568726,35.9424,156.82,156.66,67.5772]
[1721255568727,6.3795,156.75,156.7,15.9536]
[1721255568916,21.27788398,156.74,156.7,22.3348]
[1721255569282,20.0,156.74,156.7,22.3348]
[1721255569799,1.27788398,156.73,156.7,15.9536]
[1721255571091,6.3808,156.72,156.68,6.3824]
[1721255571330,27.65938398,156.71,156.67,15.9567]
[1721255571495,7.65948398,156.7,156.66,6.3829]
[1721255571696,7.65948398,156.7,156.65,6.3836]
[1721255571912,26.382,156.69,156.65,6.3836]
[1721255572212,1.27788398,156.68,156.65,6.3836]
[1721255573012,20.0,156.69,156.66,15.9574]
[1721255573218,1.27788398,156.75,156.68,6.3824]
[1721255573219,6.3808,156.72,156.68,6.3824]
[1721255573417,21.27788398,156.71,156.68,6.3824]
[1721255573610,1.27788398,156.7,156.67,6.3827]
[1721255573810,20.0,156.71,156.67,6.3827]
[1721255574024,21.27788398,156.71,156.68,6.3823]
[1721255574406,1.27788398,156.71,156.68,6.3823]
[1721255574607,1.27788398,156.71,156.66,22.3403]
[1721255574911,7.65908398,156.71,156.67,6.3827]
[1721255575108,20.0,156.7,156.67,6.3827]
[1721255575911,1.27788398,156.69,156.67,6.3827]
[1721255576114,1.27788398,156.69,156.66,22.3405]
[1721255576321,7.66008398,156.69,156.64,6.3837]
[1721255576503,20.0,156.68,156.64,6.3837]
[1721255576706,1.27788398,156.67,156.63,22.3455]
[1721255576926,1.27788398,156.67,156.64,6.384]
[1721255577728,7.66078398,156.67,156.63,15.9611]
[1721255577902,20.0,156.66,156.63,15.9611]
[1721255578107,20.0,156.66,156.63,22.3454]
[1721255578528,21.27788398,156.67,156.63,22.3454]
[1721255578714,27.66088398,156.67,156.63,15.9611]
[1721255578914,1.27788398,156.66,156.63,22.3455]
[1721255579538,20.0,156.67,156.64,6.3838]
[1721255579829,1.27788398,156.66,156.64,6.3838]
[1721255580218,21.27788398,156.68,156.64,6.3838]
[1721255580428,21.27788398,156.68,156.65,6.3835]
[1721255580617,1.27788398,156.67,156.64,6.3839]
[1721255581220,1.27788398,156.67,156.63,22.3454]
[1721255581417,7.66078398,156.67,156.63,15.9611]
[1721255581615,20.0,156.66,156.63,15.9611]
[1721255581940,6.6352,156.71,156.65,15.9584]
[1721255582139,1.27788398,156.7,156.67,6.3827]
[1721255582349,15.5012,156.74,156.68,1.27643951]
[1721255582350,1.27788398,156.73,156.68,1.27643951]
[1721255582514,7.65838398,156.73,156.67,15.9562]
[1721255582713,6.3813,156.71,156.67,15.9562]
[1721255583040,6.3808,156.72,156.67,22.3389]
[1721255583215,1.27788398,156.71,156.67,22.3389]
[1721255583416,1.27788398,156.7,156.67,22.3389]
[1721255583735,7.65868398,156.72,156.67,22.3389]
[1721255583910,1.27788398,156.72,156.68,6.3821]
[1721255584112,1.27788398,156.72,156.68,7.65841248]
[1721255584546,7.65878398,156.72,156.67,22.3389]
[1721255585360,20.0,156.71,156.67,22.3389]
[1721255586218,1.27788398,156.7,156.67,15.9562]
[1721255586835,7.65968398,156.7,156.65,6.3835]
[1721255587409,20.0,156.71,156.66,17.23399289]
[1721255587627,20.0,156.71,156.63,31.9218]
[1721255587851,1.27788398,156.7,156.67,6.3827]
[1721255588015,7.65868398,156.72,156.67,6.3827]
[1721255588216,20.0,156.71,156.68,6.3823]
[1721255588453,1.27788398,156.7,156.67,6.3827]
[1721255588653,21.27788398,156.71,156.67,6.3827]
[1721255588815,20.0,156.71,156.68,6.3823]
[1721255589319,21.27788398,156.72,156.68,6.3823]
[1721255589958,6.38,156.74,156.7,6.3815]
[1721255590128,7.65698398,156.77,156.72,6.3807]
[1721255590448,1.27788398,156.76,156.72,6.3807]
[1721255590825,7.65708398,156.76,156.72,6.3807]
[1721255591340,21.27788398,156.75,156.72,6.3807]
[1721255592142,20.0,156.75,156.72,1.27609086]
[1721255592444,27.65668398,156.77,156.73,6.3803]
[1721255592649,1.27788398,156.76,156.73,6.3803]
[1721255593735,1.27788398,156.81,156.74,7.65586933]
[1721255594728,1.27788398,156.81,156.74,6.3799]
[1721255594924,1.27788398,156.81,156.72,6.3804]
[1721255595258,6.3784,156.78,156.73,6.3802]
[1721255595430,6.3784,156.78,156.74,1.27583149]
[1721255596139,6.3784,156.78,156.74,7.65573149]
[1721255596338,6.3784,156.78,156.74,6.3799]
[1721255596537,6.378,156.79,156.74,6.3799]
[1721255596742,20.0,156.78,156.75,1.27583163]
[1721255596937,1.27788398,156.8,156.76,6.379]
[1721255597250,21.27788398,156.8,156.76,6.379]
[1721255597860,1.27788398,156.79,156.75,22.3278]
[1721255598652,7.65588398,156.79,156.75,22.3278]
[1721255598858,7.65588398,156.79,156.75,15.9483]
[1721255599164,7.65588398,156.79,156.75,22.3277]
[1721255599461,7.65588398,156.79,156.75,15.9483]
[1721255599625,7.65588398,156.79,156.75,22.3278]
[1721255600627,7.65588398,156.79,156.75,15.9483]
[1721255601246,1.27788398,156.79,156.75,22.3277]
[1721255602356,6.3788,156.77,156.72,22.3324]
[1721255602563,1.27788398,156.76,156.72,22.3324]
[1721255602935,21.27788398,156.76,156.72,22.3324]
[1721255603458,21.27788398,156.76,156.73,6.3803]
[1721255604740,6.3783,156.79,156.75,6.3795]
[1721255604937,7.65508398,156.81,156.74,15.9493]
[1721255605156,1.27788398,156.81,156.78,6.3783]
[1721255605464,1.27788398,156.81,156.77,6.3786]
[1721255606339,27.65498398,156.81,156.76,22.3264]
[1721255606534,6.3776,156.8,156.76,22.3264]
[1721255606737,1.27788398,156.8,156.76,22.3264]
[1721255607061,1.27788398,156.8,156.77,6.3787]
[1721255607258,1.27788398,156.79,156.77,6.3787]
[1721255608267,32.9800746,156.81,156.78,6.3783]
[1721255608268,1.27788398,156.8,156.78,6.3783]
[1721255609236,21.27788398,156.81,156.79,6.3779]
[1721255609463,1.27788398,156.81,156.79,6.3779]
[1721255609798,1.27788398,156.81,156.78,6.3783]
[1721255610165,20.0,156.82,156.78,6.3783]
[1721255610365,21.27788398,156.82,156.78,6.3783]
[1721255611986,27.65468398,156.82,156.78,6.3783]
[1721255612364,20.0,156.82,156.77,1.27562109]
[1721255612687,21.27788398,156.82,156.77,1.27562109]
[1721255614170,14.25559098,156.85,156.8,22.3206]
[1721255614482,6.3759,156.84,156.8,15.9432]
[1721255615565,6.3759,156.84,156.77,46.27562109]
[1721255615566,7.65428398,156.83,156.77,52.65402109]
[1721255615784,27.65478398,156.82,156.77,6.3784]
[1721255615979,6.3775,156.8,156.76,15.947]
[1721255616176,21.27788398,156.79,156.76,15.947]
[1721255616694,20.0,156.79,156.76,15.947]
[1721255616991,20.0,156.79,156.76,22.326]
[1721255617192,21.27788398,156.84,156.76,22.326]
[1721255617385,21.27788398,156.84,156.76,15.947]
[1721255618485,6.378,156.79,156.74,6.3797]
[1721255618683,21.27788398,156.78,156.74,6.3797]
[1721255619194,20.0,156.78,156.74,6.3797]
[1721255619375,20.0,156.78,156.75,6.3795]
[1721255619583,20.0,156.79,156.76,6.3791]
[1721255619899,1.27788398,156.79,156.76,6.3791]
[1721255620886,20.0,156.8,156.77,6.3786]
[1721255621388,7.65588398,156.79,156.75,15.9483]
[1721255621588,20.0,156.78,156.72,17.22733666]
[1721255621808,6.3796,156.75,156.7,6.3812]
[1721255621991,1.27788398,156.74,156.7,6.3812]
[1721255622293,23.1609,156.8,156.71,6.3811]
[1721255622294,6.3792,156.76,156.71,6.3811]
[1721255622484,21.27788398,156.75,156.71,6.3811]
[1721255623401,20.0,156.75,156.72,6.3806]
[1721255623579,21.27788398,156.76,156.71,6.3811]
[1721255626409,21.27788398,156.76,156.7,22.3346]
[1721255626580,1.27788398,156.75,156.7,22.3346]
[1721255626781,1.27788398,156.74,156.7,22.3346]
[1721255626991,20.0,156.79,156.7,22.3346]
[1721255626992,6.3797,156.75,156.7,22.3346]
[1721255627284,21.27788398,156.74,156.67,22.3392]
[1721255627477,6.3808,156.72,156.67,22.3392]
[1721255627706,6.3803,156.74,156.69,6.3819]
[1721255627892,21.27788398,156.73,156.69,6.3819]
[1721255630024,20.0,156.73,156.7,1.27632123]
[1721255630183,20.0,156.73,156.71,1.2760771]
[1721255630512,21.27788398,156.76,156.71,1.2760771]
[1721255631299,21.27788398,156.76,156.7,1.27606895]
[1721255631498,21.27788398,156.76,156.71,1.27606895]
[1721255631884,21.27788398,156.76,156.71,7.65716895]
[1721255632288,27.65708398,156.76,156.71,7.65716895]
[1721255632701,6.3796,156.75,156.69,22.3359]
[1721255632895,20.0,156.74,156.69,22.3359]
[1721255633798,20.0,156.74,156.7,6.3816]
[1721255635709,20.0,156.74,156.69,15.9543]
[1721255635897,1.27788398,156.73,156.68,6.382]
[1721255636099,7.65858398,156.73,156.68,6.382]
[1721255636299,21.27788398,156.72,156.68,6.382]
[1721255636509,20.0,156.72,156.69,6.3819]
[1721255636910,26.3804,156.73,156.68,6.3823]
[1721255637111,1.27788398,156.72,156.68,6.3823]
[1721255637494,26.3804,156.73,156.68,6.3823]
[1721255637699,20.0,156.73,156.69,7.65826511]
[1721255637900,21.27788398,156.73,156.69,6.382]
[1721255639714,27.65828398,156.73,156.68,6.3823]
[1721255639902,1.27788398,156.72,156.68,6.3823]
[1721255640210,20.0,156.73,156.69,6.3819]
[1721255640513,20.0,156.73,156.7,1.27626136]
[1721255640715,21.27788398,156.75,156.71,6.381]
[1721255640897,27.65748398,156.75,156.69,45.0]
[1721255641298,27.65748398,156.75,156.7,6.3813]
[1721255641502,21.27788398,156.75,156.7,17.22831361]
[1721255641822,20.0,156.74,156.7,17.22831361]
[1721255642028,20.0,156.74,156.7,15.9533]
[1721255642317,20.0,156.74,156.7,22.3348]
[1721255642616,1.27788398,156.77,156.71,1.27615466]